Cogmind - Beta 17.1 @@@ ROGUE MODE // 2026.08.26 @ 13:04:17 Player: Godsword Result: Self-destructed Performance ------------- Evolutions (1) 500 Regions Visited (3) 600 Robots Destroyed (5) 25 Value Destroyed (82) 82 Prototype IDs (0) 0 Alien Tech Used (0) 0 Bonus (0) 0 TOTAL SCORE: 1207 Bonus ------- None Cogmind --------- Core Integrity 372/400 Matter 222/300 Energy 114/125 System Corruption 0% Temperature Cool (9) Movement Flying (120) Ox1 Location -9/Materials Parts ------- > --- POWER (1) -------- Light Ion Engine > --- PROPULSION (4) --- Flight Unit > --- UTILITY (2) ------ Signal Interpreter Terrain Scan Processor > --- WEAPON (2) ------- EM Pulse Gun Grenade Launcher > --- INVENTORY (5) ---- Light Ion Engine Rocket Launcher Peak State ------------ > --- POWER ------------ Light Ion Engine > --- PROPULSION ------- Flight Unit Flight Unit > --- UTILITY ---------- Signal Interpreter Terrain Scan Processor > --- WEAPON ----------- EM Pulse Gun Grenade Launcher > --- INVENTORY -------- Light Ion Engine Rocket Launcher [Rating: 8] Favorites ----------- Power Light Ion Engine Engine Light Ion Engine Propulsion Flight Unit Flight Unit Flight Unit Utility Signal Interpreter Processor Signal Interpreter Weapon Grenade Launcher Energy Gun EM Pulse Gun Launcher Grenade Launcher Build | -11 -10 -10 -9 ------- Run | Yrd Mat Min Mat Slots Evolved 2 | . . . 2 Power . | . . . . Propulsion 2 | . . . 2 Utility . | . . . . Weapon . | . . . . Parts Attached 7 | 1 4 1 1 Power 1 | 1 . . . Engine 1 | 1 . . . Core . | . . . . Reactor . | . . . . Propulsion 2 | . 2 . . Treads . | . . . . Leg . | . . . . Wheel . | . . . . Hover . | . . . . Flight 2 | . 2 . . Utility 2 | . . 1 1 Device . | . . . . Storage . | . . . . Processor 2 | . . 1 1 Hackware . | . . . . Protection . | . . . . Artifact . | . . . . Weapon 2 | . 2 . . Energy Gun 1 | . 1 . . Energy Cannon . | . . . . Ballistic Gun . | . . . . Ballistic Cannon . | . . . . Launcher 1 | . 1 . . Special Weapon . | . . . . Impact Weapon . | . . . . Slashing Weapon . | . . . . Piercing Weapon . | . . . . Special Melee Weapon . | . . . . Unidentified Prototypes . | . . . . Parts Lost 1 | . . . 1 Power . | . . . . Propulsion 1 | . . . 1 Utility . | . . . . Weapon . | . . . . Highest Loss Streak 1 | . . . 1 To Critical Strikes . | . . . . Average Backups . | . . . 2 Power . | . . . 1 Propulsion . | . . . . Utility . | . . . . Weapon . | . . . 1 Tool/Special . | . . . . Unused Backups 1 | . . . 1 Power . | . . . . Propulsion . | . . . . Utility . | . . . . Weapon 1 | . . . 1 Tool/Special . | . . . . Average Slot Usage (%) 54 | . 40 71 71 Engine 13 | . 14 14 11 Flight 18 | . 12 28 22 Processor 2 | . . . 16 Energy Gun 8 | . 4 14 11 Launcher 11 | . 9 14 11 Peak Build Rating 8 | 1 5 6 8 Average Rating 3 | . 2 5 6 On Entrance 3 | . 1 5 6 Avg Prop Armor Cover (%) . | . . . . Naked Turns . | . . . . Heaviest Build 8 | 3 8 8 8 Greatest Support 8 | 3 8 8 8 Greatest Overweight (x) 1 | . 1 . . Average Overweight (x) . | . . . . Largest Inventory Capacity 5 | 5 5 5 5 Average Capacity 5 | 5 5 5 5 Most Carried 2 | . 1 2 2 Average Carried . | . . . 2 Final Capacity 5 | 5 5 5 5 Final Carried 2 | . . 2 2 Class Distribution -------------------- 100% | Mutant Dominant Class ---------------- Mutant | -10/Materials Mutant | -10/Mines Mutant | -9/Materials Resources | -11 -10 -10 -9 ----------- Run | Yrd Mat Min Mat Matter Collected 227 | 188 . 39 . Remotely . | . . . . Salvage Created 19 | . 19 . . Parts 6 | . 6 . . Haulers Intercepted . | . . . . Recyclers Shooed . | . . . . Parts Field Recycled . | . . . . Retrieved Matter . | . . . . Parts Self-Destructed . | . . . . Prevented . | . . . . Parts Restored . | . . . . Kills | -11 -10 -10 -9 ------- Run | Yrd Mat Min Mat Combat Hostiles Destroyed 3 | . 3 . . AOE 3 | . 3 . . Classes Destroyed 3 | . 3 . . Operator 1 | . 1 . . Watcher 1 | . 1 . . Swarmer 3 | . 3 . . Best Kill Streak 5 | . 5 . . Combat Bots Only 3 | . 3 . . Max Kills in Single Turn 2 | . 2 . . Gunslinging . | . . . . Exploded 2 | . 2 . . Melee . | . . . . Uniques/NPCs Destroyed . | . . . . Combat | -11 -10 -10 -9 -------- Run | Yrd Mat Min Mat Hostile Shots Fired 13 | . 7 . 6 Missed 4 | . 3 . 1 Hits 9 | . 4 . 5 Projectile 9 | . 4 . 5 Critical Strikes 1 | . . . 1 Damage Taken 135 | . 64 . 71 Core 56 | . 28 . 28 Absorbed by Shields . | . . . . Core Remaining (%) 94 | 100 . 88 . Volleys Fired 4 | . 4 . . Largest 1 | . 1 . . Hottest 30 | . 30 . . Shots Fired 4 | . 4 . . Gun . | . . . . Cannon . | . . . . Launcher 4 | . 4 . . Special . | . . . . Kinetic . | . . . . Thermal . | . . . . Explosive 4 | . 4 . . Electromagnetic . | . . . . Robot Hit Streak 3 | . 3 . . Robot Miss Streak 1 | . 1 . . Penetration Max . | . . . . Secondary Targets . | . . . . Shots Hit Robots 3 | . 3 . . Core Hits 6 | . 6 . . Critical Kills . | . . . . Critical Parts Destroyed . | . . . . Critical Strikes . | . . . . Melee Attacks . | . . . . Impact . | . . . . Slashing . | . . . . Piercing . | . . . . Sneak Attacks . | . . . . Combat Hostiles . | . . . . Follow-up Attacks . | . . . . Damage Inflicted 401 | . 401 . . Guns . | . . . . Cannons . | . . . . Explosions 401 | . 401 . . Melee . | . . . . Ramming . | . . . . Kinetic . | . . . . Thermal . | . . . . Explosive 401 | . 401 . . Electromagnetic . | . . . . Impact . | . . . . Slashing . | . . . . Piercing . | . . . . Highest Corruption . | . . . . Average Corruption . | . . . . Corruption Purged . | . . . . Corruption Blocked . | . . . . Overload Shots . | . . . . Overflow Damage 25 | . 25 . . Projectiles . | . . . . Explosions 25 | . 25 . . Melee . | . . . . Knockbacks . | . . . . Impact . | . . . . Kinetic . | . . . . Secondary . | . . . . Self-Inflicted Damage 32 | . 32 . . Shots 2 | . 2 . . Rammed . | . . . . Targets Rammed . | . . . . Kicked . | . . . . Crushed . | . . . . Highest Temperature 12 | . . . 12 Average Temperature 12 | . . . 12 Received Heat Transfer 36 | . . . 36 Siege Activations . | . . . . Martial Activations . | . . . . Shielding Activations . | . . . . Robots Disrupted . | . . . . Combat Hostiles . | . . . . Robots Corrupted . | . . . . Combat Hostiles . | . . . . Parts Fried . | . . . . Impact Corruptions . | . . . . Robots Melted . | . . . . Combat Hostiles . | . . . . Parts Melted . | . . . . Heat Transferred . | . . . . Parts Sabotaged . | . . . . Parts Stolen . | . . . . Parts Stripped . | . . . . Power Chain Reactions . | . . . . Alert | -11 -10 -10 -9 ------- Run | Yrd Mat Min Mat Maximum Alert Level . | . . . . Low Security (%) 100 | 100 100 100 100 Level 1 . | . . . . Level 2 . | . . . . Level 3 . | . . . . Level 4 . | . . . . Level 5 . | . . . . High Security . | . . . . Max Security . | . . . . Peak Influence 131 | . 131 43 8 Initial 43 | . . 43 8 Average 49 | . 73 35 8 Influence Increases 131 | . 131 . . Destroy 0b10 Robot/C 60 | . 60 . . Destroy 0b10 Robot/NC 10 | . 10 . . Destroy Leader 12 | . 12 . . Disable Machine 30 | . 30 . . Destroy Structure 19 | . 19 . . Influence Decreases 131 | . 20 88 23 Entered New Map 83 | . . 68 15 Time Decay 40 | . 20 20 . Lost Part 8 | . . . 8 Squads Dispatched 1 | . 1 . . Investigation 1 | . 1 . . Extermination . | . . . . Reinforcement . | . . . . Assault . | . . . . Garrison . | . . . . Intercept . | . . . . Searches Triggered . | . . . . Construction Impeded . | . . . . Haulers Reinforced . | . . . . Active Scanning Responses . | . . . . Cargo Convoy Interrupts . | . . . . Stealth | -11 -10 -10 -9 --------- Run | Yrd Mat Min Mat Distress Signals 1 | . . . 1 Communications Jammed . | . . . . Distress Signals . | . . . . Times Spotted 12 | . 9 . 3 Peak Tracking Total 5 | . 5 . 3 Tactical Retreats . | . . . . Traps | -11 -10 -10 -9 ------- Run | Yrd Mat Min Mat Traps Triggered . | . . . . Indirectly . | . . . . Trap Hack Attempts . | . . . . Triggered . | . . . . Disarmed . | . . . . Reprogrammed . | . . . . Reused . | . . . . Traps Extracted . | . . . . Installed . | . . . . Triggered . | . . . . Machines | -11 -10 -10 -9 ---------- Run | Yrd Mat Min Mat Machines Disabled 2 | . 2 . . Max in Single Turn 2 | . 2 . . Machines Repaired . | . . . . Machines Dismantled . | . . . . Machines Sabotaged . | . . . . Overloaded Fab Kills . | . . . . Hacking | -11 -10 -10 -9 --------- Run | Yrd Mat Min Mat Machines Accessed 1 | . 1 . . Terminals 1 | . 1 . . Fabricators . | . . . . Repair Stations . | . . . . Recycling Units . | . . . . Scanalyzers . | . . . . Garrison Access . | . . . . Total Hacks 3 | . 3 . . Successful . | . . . . Failed 3 | . 3 . . Catastrophic 2 | . 2 . . Database Lockouts . | . . . . Manual 3 | . 3 . . Terminals 3 | . 3 . . Fabricators . | . . . . Repair Stations . | . . . . Recycling Units . | . . . . Scanalyzers . | . . . . Garrison Access . | . . . . Terminal Hacks . | . . . . Fabricator Hacks . | . . . . Repair Station Hacks . | . . . . Recycling Unit Hacks . | . . . . Scanalyzer . | . . . . Garrison Access Hacks . | . . . . Unauthorized Hacks . | . . . . Terminals . | . . . . Fabricators . | . . . . Repair Stations . | . . . . Recycling Units . | . . . . Scanalyzers . | . . . . Garrison Access . | . . . . Data Cores Recovered . | . . . . Used . | . . . . Hacking Detections 1 | . 1 . . Full Trace Events 1 | . 1 . . Feedback Events . | . . . . Feedback Blocked . | . . . . Robot Schematics Acquired . | . . . . Robots Built . | . . . . Authchips . | . . . . Time . | . . . . Total Robot Build Rating . | . . . . Part Schematics Acquired . | . . . . Parts Built . | . . . . Authchips . | . . . . Time . | . . . . Total Part Build Rating . | . . . . Part Studies Acquired . | . . . . Parts Repaired . | . . . . Time . | . . . . Parts Recycled . | . . . . Recycled Matter . | . . . . Retrieved Matter . | . . . . Retrieved Components . | . . . . Parts Scanalyzed . | . . . . Part Schematics Acquired . | . . . . Parts Damaged . | . . . . Bothacking | -11 -10 -10 -9 ------------ Run | Yrd Mat Min Mat Used RIF Installer . | . . . . Robots Hacked . | . . . . Non-combat . | . . . . Combat . | . . . . Robot Hacks Applied . | . . . . Relay Couplers Released . | . . . . Fabnet Peak Effective % . | . . . . Robots Rewired . | . . . . Allies Hacked . | . . . . Hacks Repelled . | . . . . Allies | -11 -10 -10 -9 -------- Run | Yrd Mat Min Mat Total Allies . | . . . . Largest Group . | . . . . Highest-Rated Group . | . . . . Highest-Rated Ally . | . . . . Total Orders . | . . . . Ally Attacks . | . . . . Total Damage . | . . . . Kills . | . . . . Allies Corrupted . | . . . . Allies Melted . | . . . . Intel | -11 -10 -10 -9 ------- Run | Yrd Mat Min Mat Active Infowar (turns) . | . . . . Robot Analysis Total . | . . . . Derelict Logs Recovered 2 | . . 2 . Drone Launches . | . . . . Drone Recoveries . | . . . . Exploration | -11 -10 -10 -9 ------------- Run | Yrd Mat Min Mat Turns Passed 149 | 14 77 47 11 Spaces Moved 292 | 24 141 102 25 Core 74 | 24 50 . . Treads . | . . . . Legs . | . . . . Wheels . | . . . . Hover . | . . . . Flight 218 | . 91 102 25 Fastest Speed 37 | 50 37 37 37 Average Speed 41 | 50 43 37 37 Slowest Speed 120 | 50 120 37 37 Overloaded Moves . | . . . . Propulsion Burnouts . | . . . . Robots Hopped 1 | . 1 . . Potential Cave-ins . | . . . . Cave-ins Triggered . | . . . . Exploration Rate (%) 16 | 4 36 20 5 Regions Visited 3 Branch Regions 1 Pre-discovered Areas . | . . . . Known Exits Taken 1 | . . 1 . Unknown Exits Taken 2 | 1 1 . . Scrap Searched 1 | . . 1 . Spaces Dug . | . . . . Terrain Destroyed 25 | . 25 . . Melee . | . . . . Projectile . | . . . . AOE 25 | . 25 . . Terrain Rammed . | . . . . Walls Destroyed . | . . . . Machines Disabled . | . . . . Actions | -11 -10 -10 -9 --------- Run | Yrd Mat Min Mat Total 308 | 24 148 110 26 Wait 6 | . . 6 . Move 287 | 23 138 101 25 Hop 1 | . 1 . . Pick Up 3 | . 1 2 . Fast Attach 6 | 1 3 1 1 Attach 1 | . 1 . . Detach . | . . . . Swap . | . . . . Drop . | . . . . Fire 4 | . 4 . . Melee . | . . . . Ram . | . . . . Kick . | . . . . Crush . | . . . . Escape Stasis . | . . . . Rewire . | . . . . Trap . | . . . . Miscellaneous . | . . . . Route ------- -11/Scrapyard -10/Materials -10/Mines (discovered 2 exits: *Mat / Sub) -9/Materials (discovered 1 exit: Mat) History --------- Turn | Location | Event 5 | -11/Scrapyard | Discovered new exit (range 15) 15 | -11/Scrapyard | Entered Materials 88 | -10/Materials | Discovered new exit (range 10) 92 | -10/Materials | Entered Mines 102 | -10/Mines | Discovered new exit (range 9) 108 | -10/Mines | Received a Rocket Launcher from a helpful Derelict 120 | -10/Mines | Identified exit to Subcaves 130 | -10/Mines | Learned location of 1 exit from Materials 139 | -10/Mines | Identified exit to Materials 139 | -10/Mines | Entered Materials 139 | -9/Materials | Evolved 2 slots: Propulsion x2 140 | -9/Materials | Identified exit to Materials 150 | -9/Materials | Self-destructed Last Messages --------------- Loading 1 Mines exit... 00129_ Searching scrap... 00129_ Found Lgt. Cannon. 00129_ Found Lgt. Ion Engine. 00129_ Found Signal Interpreter. 00129_ Found 39 Matter. 00130_ Acquired 39 matter. 00130_ Acquired derelict log, extracted data. Data stored: Materials exits (x1). 00131_ Acquired Signal Interpreter. 00133_ Acquired Lgt. Ion Engine. 00138_ K-01 Serf collects debris. 00139_ EXIT=IDENTIFIED: MATERIALS PARAMETERS=PROPULSION+2 LOCATION=MATERIALS GOAL=ESCAPE Loading 1 Materials exit... 00142_ Critical hit (Burn: +37). 00149_ Acquired Terrain Scan Processor. 00150_ Flight Unit destroyed. Map ----- +----------------------------------------------------+ | ??????????????????????#####??????????????????????? | | ??????????????????????# #??????????????????????? | | ??????????????????????# #??????????????????????? | | ??????????????????????# #??????????????????????? | | ??????????????????????# #??????????????????????? | | ??????????????????????# #??###?????????????????? | | ??????????????????????# #?? ?????????????????? | | ??????????????????????# #?"""" #???????????????? | | ???????????############ #?"""" #???????????????? | | ?????????? # """" #???????????????? | | ?????????? # #???????????????? | | ?????????? + ! #???????????????? | | ?????????? ###########????????????? | | ?????????? # #????????????? | | ?????????? # ?????????????? | | ???????????############ # ?????????????? | | ??????????????????????# # ??????????????? | | ??????????????????????# # """ ""???????????????? | | ??????????????????????# + """ ""???????????????? | | ??????????????????????# # """ ""???????????????? | | ??????????????????????# # #????????????? | | ?????????????????????## ###########????????????? | | ?????????????????????# #?????????????????????? | | ?????????????????????# Y #?????????????????????? | | ?????????????????????# #?????????????????????? | | ?????????????????????# @ #?????????????????????? | | ?????????????????????# #?????????????????????? | | ?????????????????????#### ##?????????????????????? | | ????????????????????????# #??????????????????????? | | ????????????????????????#w#??????????????????????? | | ????????????????????????#Y#??????????????????????? | | ????????????????????????# ??????????????????????? | | ????????????????????????# ??????????????????????? | | ????????????????????????# ??????????????????????? | | ????????????????????????? ??????????????????????? | | ????????????????????????? ??????????????????????? | | ?????????????????????????# ??????????????????????? | | ?????????????????????????? ??????????????????????? | | ?????????????????????????? ??????????????????????? | | ?????????????????????????? ??????????????????????? | | ?????????????????????????? ??????????????????????? | | ?????????????????????????????????????????????????? | | ?????????????????????????????????????????????????? | | ?????????????????????????????????????????????????? | | ?????????????????????????????????????????????????? | | ?????????????????????????????????????????????????? | | ?????????????????????????????????????????????????? | | ?????????????????????????????????????????????????? | | ?????????????????????????????????????????????????? | | ?????????????????????????????????????????????????? | +----------------------------------------------------+ Best States ------------- Heat Dissipation 28 Energy Generation 10 Energy Capacity 125 Matter Stores 278 Matter Capacity 300 Sight Range 16 Terrain Scan Density 85 Evasion (%) 62 Item Schematics ----------------- None Robot Schematics ------------------ None Fabricated ------------ Nothing Repaired ---------- Nothing Studied --------- None Alien Tech Used ----------------- None Achievements -------------- None Challenges ------------ None Game ------ Seed LightChromionLance Manual? 0 Play Time 00:03:23 Cumulative 0.7 hours Start 2026.08.26 @ 13:00:58 End 2026.08.26 @ 13:04:17 Sessions 1 Manual Loads 0 Difficulty Rogue Special Mode None Game No. 5 Rogue 5 Adventurer 0 Explorer 0 Win Type - Total 0 Types 0/0/0/0/0/0/0/0/0/0 Lore% 0 Gallery% 4 Achievement% 40 Wizard Run 0 Options --------- Layout 1 ASCII 0 Keyboard 0 Movement Mouse Keybinds 0 Fullscreen 1 Font 16/SmallcapsGlow Map View 50x40 Zoom Use 0% Tactical HUD 1 Map Filters NONE Filters NONE Steam SD RUN: 1465d911-f119-425c-8718-c02ba1febd23